bitfinex-derivatives/quotes_SOLF0:USTF0_20260210
["timestamp","ask_amount","ask_price","bid_price","bid_amount"]
[1770698171477,3.96695508,86.42,86.376,7.96834167]
[1770698171679,3.96695508,86.43,86.376,7.96834167]
[1770698172573,3.96695508,86.43,86.333,162.2945]
[1770698172574,10.417,86.468,86.403,7.96834167]
[1770698172770,3.96695508,86.45,86.403,7.96834167]
[1770698176078,3.96695508,86.44,86.403,7.96834167]
[1770698177270,10.417,86.468,86.406,7.89385611]
[1770698177485,3.96695508,86.45,86.406,7.89385611]
[1770698178183,3.96695508,86.42,86.345,7.89385611]
[1770698178482,3.96695508,86.41,86.351,7.89385611]
[1770698179783,3.96695508,86.41,86.368,7.88994859]
[1770698180779,3.96695508,86.41,86.37,7.88987672]
[1770698182489,3.96695508,86.42,86.371,8.0390774]
[1770698182792,3.96695508,86.43,86.371,8.0390774]
[1770698183775,3.96695508,86.43,86.376,8.03021632]
[1770698184793,3.96695508,86.43,86.382,8.03021632]
[1770698186586,3.96695508,86.43,86.384,8.02716199]
[1770698187678,3.96695508,86.45,86.39,8.01836109]
[1770698188684,3.96695508,86.45,86.396,8.01836109]
[1770698189799,3.96695508,86.45,86.398,8.01545429]
[1770698191090,3.96695508,86.46,86.401,7.9753698]
[1770698192694,3.96695508,86.46,86.415,10.4233]
[1770698192890,3.96695508,86.46,86.416,7.9753698]
[1770698194792,3.96695508,86.45,86.403,10.4247]
[1770698195302,3.96695508,86.45,86.404,7.96552528]
[1770698195901,3.96695508,86.45,86.406,7.96552528]
[1770698199897,10.4182,86.458,86.406,7.96552528]
[1770698199898,3.96695508,86.44,86.406,7.96552528]
[1770698201004,3.96695508,86.45,86.406,7.96552528]
[1770698202603,3.96695508,86.45,86.409,7.92121746]
[1770698207011,3.95534258,86.48,86.411,7.92892331]
[1770698207210,3.95534258,86.49,86.421,7.92914834]
[1770698208414,10.4145,86.489,86.437,7.92914834]
[1770698208708,3.95534258,86.48,86.437,7.92914834]
[1770698210708,3.95534258,86.48,86.385,20.8538]
[1770698210709,3.95534258,86.49,86.441,7.94122576]
[1770698211211,3.95534258,86.49,86.445,7.93829106]
[1770698212010,3.95534258,86.48,86.445,7.93829106]
[1770698212211,3.95534258,86.47,86.435,10.4209]
[1770698212411,3.95534258,86.48,86.436,7.93829106]
[1770698214511,3.95324415,86.48,86.436,7.93829106]
[1770698222022,3.95324415,86.47,86.436,7.93829106]
[1770698223828,3.95324415,86.47,86.415,7.87371017]
[1770698224027,3.95324415,86.46,86.415,7.87371017]
[1770698224323,10.85176325,86.488,86.415,7.87371017]
[1770698224531,3.95324415,86.47,86.415,7.87371017]
[1770698225326,3.95324415,86.46,86.415,7.87371017]
[1770698230321,10.4162,86.475,86.415,7.87371017]
[1770698230524,3.95324415,86.48,86.422,7.91860761]
[1770698230723,3.95324415,86.49,86.422,7.91860761]
[1770698231232,3.95324415,86.48,86.422,7.91860761]
[1770698231433,3.95324415,86.49,86.434,7.91856965]
[1770698231824,3.95324415,86.51,86.451,7.91856965]
[1770698232227,3.95324415,86.51,86.461,7.91856965]
[1770698232933,3.95324415,86.52,86.465,7.91856965]
[1770698233429,3.95324415,86.53,86.468,7.91059147]
[1770698233738,3.95324415,86.53,86.471,7.91059147]
[1770698234431,21.25796325,86.558,86.481,7.91059147]
[1770698234637,3.95324415,86.54,86.481,7.91059147]
[1770698234932,3.95324415,86.57,86.511,6.94968104]
[1770698235238,3.95324415,86.52,86.481,6.94968104]
[1770698235432,3.95324415,86.51,86.481,6.94968104]
[1770698235636,10.85176325,86.539,86.467,6.94968104]
[1770698235837,3.95324415,86.5,86.467,6.94968104]
[1770698239333,10.4106,86.522,86.467,6.94968104]
[1770698239534,3.95324415,86.5,86.467,6.94968104]
[1770698242941,3.95324415,86.5,86.44,3.95324415]
[1770698242942,3.95324415,86.49,86.454,6.88605462]
[1770698243936,3.95324415,86.48,86.441,6.88605462]
[1770698244540,3.95324415,86.47,86.441,6.88605462]
[1770698247037,3.95324415,86.45,86.419,6.8944871]
[1770698247339,3.95324415,86.44,86.419,6.8944871]
[1770698249734,3.95324415,86.45,86.419,6.8944871]
[1770698250139,3.95324415,86.46,86.419,6.8944871]
[1770698250337,10.85176325,86.499,86.419,6.8944871]
[1770698250540,3.95324415,86.48,86.419,6.8944871]
[1770698250837,3.95324415,86.5,86.431,6.90228606]
[1770698251146,3.95324415,86.5,86.441,6.90061266]
[1770698251347,3.95324415,86.52,86.454,6.90061266]
[1770698251541,14.46361947,86.563,86.454,6.90061266]
[1770698251542,3.95324415,86.51,86.454,6.90061266]
[1770698251746,3.95324415,86.5,86.454,6.90061266]
[1770698252148,3.95324415,86.49,86.454,6.90061266]
[1770698252447,3.95324415,86.48,86.454,6.90061266]
[1770698253343,3.95324415,86.48,86.431,6.81958621]
[1770698253547,3.95324415,86.47,86.431,6.81958621]
[1770698253939,3.95324415,86.46,86.431,6.81958621]
[1770698254850,9.4195709,86.47,86.403,6.81958621]
[1770698255744,10.4175,86.464,86.403,6.81958621]
[1770698257050,10.4189,86.452,86.403,6.81958621]
[1770698257751,10.4201,86.443,86.387,6.76561196]
[1770698260252,10.4215,86.431,86.387,6.76561196]
[1770698262052,10.4215,86.431,86.368,6.68124637]
[1770698264553,10.423,86.419,86.368,6.68124637]
[1770698266759,10.423,86.419,86.354,6.67050195]
[1770698266961,10.4244,86.407,86.354,6.67050195]
[1770698270860,10.4232,86.417,86.359,6.78827067]
[1770698271561,10.4232,86.417,86.36,10.4299]
[1770698271761,10.4232,86.417,86.361,6.77896544]
[1770698272855,34.75,86.417,86.311,6.77896544]
[1770698273766,34.75,86.417,86.34,6.75101395]
[1770698273967,9.43109846,86.4,86.34,6.75101395]
[1770698274568,10.427,86.385,86.329,10.4337]
[1770698274761,10.427,86.385,86.29,9.43109846]
[1770698274762,10.427,86.385,86.33,6.75101395]
[1770698274963,3.96263792,86.39,86.333,6.75011373]
[1770698276769,3.96263792,86.39,86.338,6.75011373]
[1770698277871,3.96263792,86.4,86.345,6.87666479]
[1770698278365,3.96263792,86.4,86.347,6.87666479]
[1770698279665,3.96263792,86.4,86.348,10.4314]
[1770698279870,3.96263792,86.4,86.349,6.87673653]
[1770698280669,3.96263792,86.4,86.35,10.4311]
[1770698280872,3.96263792,86.4,86.351,6.87673653]
[1770698281073,3.96263792,86.39,86.351,6.87673653]
[1770698283077,3.96263792,86.38,86.321,6.87073035]
[1770698283666,3.96263792,86.38,86.33,10.4335]
[1770698283878,3.96263792,86.38,86.331,6.87073035]
[1770698284777,3.96263792,86.38,86.334,6.87073035]
[1770698286473,3.96263792,86.37,86.334,6.87073035]
[1770698290678,3.96263792,86.36,86.321,6.87948111]
[1770698290984,3.96263792,86.35,86.321,6.87948111]
[1770698291887,3.96263792,86.35,86.29,3.96263792]
[1770698291888,3.96263792,86.35,86.298,6.91610827]
[1770698292185,3.96263792,86.34,86.298,6.91610827]
[1770698292587,3.96263792,86.35,86.298,6.91610827]
[1770698294387,3.96263792,86.35,86.3,6.93099666]
[1770698294591,10.4302,86.358,86.3,6.93099666]
[1770698295687,3.96263792,86.35,86.304,6.92561746]
[1770698297792,3.96263792,86.35,86.307,6.93435232]
[1770698298594,3.96263792,86.36,86.307,6.93435232]
[1770698299796,3.96263792,86.36,86.309,6.93463138]
[1770698300690,3.96263792,86.36,86.3,3.96263792]
[1770698300691,3.96263792,86.36,86.314,6.93438827]
[1770698301092,3.96263792,86.35,86.314,6.93438827]
[1770698301594,14.39263792,86.36,86.314,6.93438827]
[1770698302302,3.96263792,86.36,86.314,6.93438827]
[1770698303897,3.96263792,86.35,86.314,6.93438827]
[1770698304695,3.96263792,86.37,86.317,6.94027714]
[1770698305498,3.96263792,86.38,86.327,6.93753824]
[1770698305691,10.4269,86.386,86.327,6.93753824]
[1770698306298,3.96263792,86.37,86.327,6.93753824]
[1770698306604,10.4277,86.379,86.327,6.93753824]
[1770698307705,10.4277,86.379,86.329,7.01348944]
[1770698307899,3.96263792,86.39,86.329,7.01348944]
[1770698308107,3.96263792,86.39,86.331,7.01348944]
[1770698308298,3.96263792,86.39,86.337,7.01348944]
[1770698308504,10.4257,86.396,86.337,7.01348944]
[1770698309793,10.4257,86.396,86.341,7.05507097]
[1770698310794,3.96263792,86.39,86.341,7.05507097]
[1770698315011,3.96263792,86.38,86.341,7.05507097]
[1770698315209,3.96263792,86.37,86.329,7.18161841]
[1770698317013,3.96263792,86.38,86.329,7.18161841]
[1770698319515,3.96263792,86.37,86.329,7.18161841]
[1770698324117,3.96263792,86.36,86.329,7.18161841]
[1770698324320,3.96263792,86.36,86.317,7.17114609]
[1770698324921,3.96263792,86.35,86.306,17.60796935]
[1770698325121,3.96263792,86.35,86.307,7.17146935]
[1770698325524,3.96263792,86.35,86.311,7.17146935]
[1770698325725,3.96263792,86.36,86.311,7.17146935]
[1770698326325,10.78518504,86.389,86.32,3.96263792]
[1770698326525,3.96263792,86.38,86.321,7.17146935]
[1770698327826,3.96263792,86.38,86.327,7.20538454]
[1770698328325,10.4256,86.397,86.33,7.20538454]
[1770698328529,3.96263792,86.39,86.33,7.20538454]
[1770698328926,3.96263792,86.39,86.331,7.20204587]
[1770698329832,3.96263792,86.39,86.346,7.20204587]
[1770698330828,10.4232,86.417,86.348,7.20203685]
[1770698331132,3.96012704,86.4,86.348,7.20203685]
[1770698331724,3.96012704,86.39,86.335,7.19228697]
[1770698332228,3.96208955,86.39,86.335,7.19228697]
[1770698332820,3.96208955,86.39,86.338,7.19228697]
[1770698334833,10.4258,86.395,86.338,7.19228697]
[1770698334834,3.96208955,86.38,86.338,7.19228697]
[1770698335927,3.96208955,86.39,86.339,10.4325]
[1770698336133,3.96208955,86.39,86.34,7.18157225]
[1770698341335,3.96208955,86.38,86.34,7.18157225]
[1770698341536,3.96208955,86.39,86.34,7.18157225]
[1770698343836,34.75,86.409,86.342,7.2029211]
[1770698344138,20.8381,86.451,86.342,7.2029211]
[1770698344139,3.96208955,86.4,86.342,7.2029211]
[1770698344335,3.96208955,86.39,86.342,7.2029211]
[1770698345828,3.96208955,86.39,86.343,7.23305085]
[1770698346837,3.96208955,86.39,86.345,7.23305085]
[1770698347437,3.96208955,86.41,86.351,7.22455378]
[1770698348746,3.96208955,86.41,86.356,7.22455378]
[1770698350040,3.96208955,86.4,86.356,7.22455378]
[1770698350541,3.96208955,86.41,86.356,7.22455378]
[1770698351347,3.96208955,86.41,86.36,7.23184346]
[1770698355542,3.96208955,86.37,86.321,7.23274317]
[1770698355733,14.40773564,86.419,86.308,7.23274317]
[1770698355734,3.96208955,86.35,86.308,7.23274317]
[1770698355934,3.96208955,86.34,86.308,7.23274317]
[1770698361347,3.96208955,86.35,86.308,7.23274317]
[1770698362634,3.96208955,86.35,86.254,20.8854]
[1770698362635,3.96208955,86.32,86.265,7.29522778]
[1770698362837,3.96208955,86.33,86.276,7.29522778]
[1770698363743,3.96208955,86.33,86.284,7.30277768]
[1770698365447,3.96208955,86.34,86.287,7.31681538]
[1770698367953,3.96208955,86.33,86.287,7.31681538]
[1770698368951,3.96208955,86.34,86.287,7.31681538]
[1770698370658,3.96208955,86.35,86.294,7.16696918]
[1770698371752,3.96208955,86.35,86.296,7.15183902]
[1770698372854,3.96208955,86.35,86.3,7.15183902]
[1770698373353,3.96208955,86.34,86.3,7.15183902]
[1770698373553,3.96208955,86.33,86.3,7.15183902]
[1770698374065,3.96208955,86.34,86.3,7.15183902]
[1770698374247,3.96208955,86.35,86.3,7.15183902]
[1770698376551,3.96208955,86.38,86.311,7.15372493]
[1770698377852,10.4281,86.376,86.317,7.14070041]
[1770698378854,10.4256,86.397,86.321,7.14070041]
[1770698379062,10.4256,86.397,86.331,7.14070041]
[1770698379456,3.96208955,86.39,86.331,7.14070041]
[1770698379957,3.96208955,86.39,86.337,7.1020304]
[1770698384067,3.96208955,86.39,86.34,7.091575]
[1770698384565,3.96208955,86.4,86.342,7.091575]
[1770698385267,3.96208955,86.39,86.342,7.091575]
[1770698385868,3.96208955,86.39,86.345,10.4317]
[1770698386961,3.96208955,86.39,86.345,17.52720742]
[1770698387562,3.96208955,86.39,86.346,7.11753083]
[1770698389380,34.75,86.427,86.28,239.29510066]
[1770698389381,3.96208955,86.37,86.281,7.11740357]
[1770698389572,3.96208955,86.37,86.311,7.11740357]
[1770698390673,3.96208955,86.37,86.322,10.4345]
[1770698390869,3.96208955,86.37,86.31,3.96208955]
[1770698390870,3.96312434,86.37,86.323,7.11717009]
[1770698391769,3.96312434,86.37,86.325,7.14131408]
[1770698392174,3.96312434,86.38,86.325,7.14131408]
[1770698399274,3.96312434,86.38,86.328,7.15671221]
[1770698400284,3.96312434,86.37,86.328,7.15671221]
[1770698402483,3.96312434,86.38,86.332,7.15527874]
[1770698403180,3.96312434,86.37,86.332,7.15527874]
[1770698404473,14.39202434,86.37,86.313,7.15643246]
[1770698405684,14.39202434,86.37,86.314,10.4355]
[1770698405985,14.39202434,86.37,86.315,7.11202938]
[1770698408589,3.96312434,86.34,86.305,7.11864488]
[1770698408787,3.96312434,86.35,86.305,7.11864488]
[1770698410391,3.96312434,86.34,86.294,7.11859476]
[1770698411887,3.96312434,86.34,86.296,7.11092276]
[1770698412289,3.96312434,86.35,86.296,7.11092276]
[1770698412691,3.96312434,86.35,86.297,10.4375]
[1770698412886,3.96312434,86.34,86.298,7.11092276]
[1770698413085,3.96312434,86.35,86.298,7.11092276]
[1770698413593,3.96312434,86.34,86.298,7.11092276]
[1770698416492,3.96312434,86.33,86.287,10.4388]
[1770698416693,3.96312434,86.33,86.285,7.01037358]
[1770698417286,3.96312434,86.32,86.285,7.01037358]
[1770698417489,3.96312434,86.32,86.273,7.01139096]
[1770698419495,3.96312434,86.31,86.258,6.88819862]
[1770698419699,3.96312434,86.3,86.258,6.88819862]
[1770698421799,3.96312434,86.31,86.26,6.89136088]
[1770698421993,34.75,86.328,86.26,6.89136088]
[1770698421994,3.96312434,86.32,86.26,6.89136088]
[1770698422800,3.96312434,86.32,86.265,6.89136088]
[1770698425794,3.96312434,86.31,86.267,10.4412]
[1770698426103,3.96312434,86.31,86.268,6.89393363]
[1770698426800,3.96312434,86.32,86.268,6.89393363]
[1770698428501,3.96312434,86.31,86.268,6.89393363]
[1770698429702,3.96312434,86.32,86.268,6.89393363]
[1770698430904,3.96312434,86.31,86.268,6.89393363]
[1770698433800,3.96312434,86.32,86.268,6.89393363]
[1770698434708,3.96312434,86.31,86.268,6.89393363]
[1770698440313,3.96312434,86.3,86.268,6.89393363]
[1770698442911,34.75,86.326,86.251,6.8746601]
[1770698443116,3.96312434,86.29,86.251,6.8746601]
[1770698447913,3.96312434,86.3,86.251,6.8746601]
[1770698448718,3.96312434,86.3,86.254,6.90112333]
[1770698451016,3.96975243,86.3,86.254,6.90112333]
[1770698454921,3.96992633,86.3,86.254,6.90112333]
[1770698455815,8.33089648,86.299,86.254,6.90112333]
[1770698456016,3.96992633,86.3,86.254,6.90112333]
[1770698456218,8.33096999,86.299,86.254,6.90112333]
[1770698456415,3.96992633,86.3,86.254,6.90112333]
[1770698456725,8.33207133,86.299,86.254,6.90112333]
[1770698456916,3.96992633,86.3,86.254,6.90112333]
[1770698457118,8.33199931,86.299,86.254,6.90112333]
[1770698457326,8.33199931,86.298,86.254,6.90112333]
[1770698457525,3.96992633,86.3,86.254,6.90112333]
[1770698457726,8.33400673,86.299,86.254,6.90112333]
[1770698457927,8.33400673,86.298,86.254,6.90112333]
[1770698458221,3.96992633,86.3,86.254,6.90112333]
[1770698458222,8.3370735,86.297,86.254,6.90112333]
[1770698458519,3.96992633,86.29,86.254,6.90112333]
[1770698460129,8.34142895,86.289,86.254,6.90112333]
[1770698460327,8.34142895,86.288,86.254,6.90112333]
[1770698460629,3.96992633,86.29,86.254,6.90112333]
[1770698460831,8.341431,86.289,86.254,6.90112333]
[1770698461128,8.341431,86.288,86.254,6.90112333]
[1770698461328,3.96992633,86.29,86.254,6.90112333]
[1770698461531,8.34394464,86.289,86.254,6.90112333]
[1770698461731,8.34394464,86.288,86.254,6.90112333]
[1770698461932,3.96992633,86.29,86.254,6.90112333]
[1770698462135,8.34394464,86.289,86.254,6.90112333]
[1770698462334,8.34394464,86.288,86.254,6.90112333]
[1770698462526,8.34394464,86.287,86.254,6.90112333]
[1770698462832,3.96992633,86.29,86.254,6.90112333]
[1770698463030,8.34541592,86.289,86.254,6.90112333]
[1770698463224,8.34541592,86.288,86.254,6.90112333]
[1770698463420,8.34541592,86.287,86.254,6.90112333]
[1770698463631,3.96992633,86.28,86.254,6.90112333]
[1770698465644,10.4386,86.289,86.254,6.90112333]
[1770698465833,8.3452239,86.288,86.254,6.90112333]
[1770698466037,10.4386,86.289,86.254,6.90112333]
[1770698466246,8.34492463,86.288,86.254,6.90112333]
[1770698466546,14.40712633,86.3,86.254,6.90112333]
[1770698466742,8.34459102,86.299,86.254,6.90112333]
[1770698467041,8.34459102,86.298,86.254,6.90112333]
[1770698467243,8.34459102,86.297,86.254,6.90112333]
[1770698467432,8.34459102,86.296,86.254,6.90112333]
[1770698467639,8.34459102,86.295,86.254,6.90112333]
[1770698467836,14.40712633,86.3,86.254,6.90112333]
[1770698467837,8.34459102,86.294,86.254,6.90112333]
[1770698468037,8.34459102,86.293,86.254,6.90112333]
[1770698468236,8.34459102,86.292,86.254,6.90112333]
[1770698468538,3.96992633,86.29,86.254,6.90112333]
[1770698468742,8.34459102,86.289,86.254,6.90112333]
[1770698468945,8.34459102,86.288,86.254,6.90112333]
[1770698469147,3.96992633,86.29,86.254,6.90112333]
[1770698469345,8.34504354,86.289,86.254,6.90112333]
[1770698469543,8.34504354,86.288,86.254,6.90112333]
[1770698469746,3.96992633,86.29,86.254,6.90112333]
[1770698469946,8.34504354,86.289,86.254,6.90112333]
[1770698470148,8.34504354,86.288,86.254,6.90112333]
[1770698470347,3.96992633,86.29,86.254,6.90112333]
[1770698470747,10.4372,86.3,86.254,6.90112333]
[1770698470945,10.4372,86.3,86.21,21.27080066]
[1770698470946,34.75,86.298,86.228,6.79099446]
[1770698471141,3.96992633,86.27,86.228,6.79099446]
[1770698471542,3.96992633,86.28,86.228,6.79099446]
[1770698471849,10.4402,86.276,86.228,6.79099446]
[1770698472643,3.96992633,86.27,86.228,6.79099446]
[1770698473842,3.96992633,86.26,86.228,6.79099446]
[1770698475455,3.96992633,86.27,86.228,6.79099446]
[1770698476553,3.96992633,86.26,86.228,6.79099446]
[1770698477646,3.96992633,86.27,86.228,6.79099446]
[1770698486357,3.96992633,86.24,86.182,6.92195147]
[1770698486864,3.96992633,86.23,86.182,6.92195147]
[1770698487058,8.33916948,86.265,86.182,6.92195147]
[1770698487059,3.96992633,86.21,86.182,6.92195147]
[1770698487360,3.96992633,86.21,86.119,11.60602584]
[1770698487361,3.96992633,86.21,86.17,6.92577127]
[1770698488161,10.4457,86.23,86.17,6.92577127]
[1770698488363,3.96992633,86.22,86.17,6.92577127]
[1770698489854,14.41562633,86.23,86.17,3.96992633]
[1770698490061,14.41562633,86.23,86.171,7.08805777]
[1770698490260,3.96992633,86.23,86.171,7.08805777]
[1770698490663,3.96992633,86.23,86.175,7.08805777]
[1770698491560,10.4458,86.229,86.175,7.08805777]
[1770698491761,3.96992633,86.22,86.175,7.08805777]
[1770698499462,10.4458,86.229,86.175,7.08805777]
[1770698499760,3.96992633,86.22,86.175,7.08805777]
[1770698501467,10.82097019,86.261,86.119,11.67240819]
[1770698501468,3.96992633,86.24,86.177,7.0709236]
[1770698501967,3.96992633,86.24,86.181,7.0709236]
[1770698502369,3.96992633,86.24,86.188,10.4507]
[1770698502673,3.96992633,86.24,86.189,7.0709236]
[1770698503358,3.96992633,86.23,86.189,7.0709236]
[1770698503971,3.96992633,86.22,86.189,7.0709236]
[1770698508559,3.96992633,86.23,86.189,7.0709236]
[1770698510875,3.97657569,86.23,86.189,7.0709236]
[1770698515579,10.4459,86.229,86.17,7.08415618]
[1770698515780,3.97657569,86.22,86.17,7.08415618]
[1770698516482,3.97657569,86.21,86.17,7.08415618]
[1770698518775,3.97657569,86.22,86.17,7.08415618]
[1770698519076,10.4458,86.23,86.17,7.08415618]
[1770698519077,14.42237569,86.23,86.17,7.08415618]
[1770698519684,14.42237569,86.23,86.171,10.4527]
[1770698519882,14.42237569,86.23,86.172,7.11769051]
[1770698520082,3.97657569,86.22,86.172,7.11769051]
[1770698520683,14.42357569,86.22,86.172,7.11769051]
[1770698521080,3.97657569,86.21,86.172,7.11769051]
[1770698521874,14.42357569,86.22,86.172,7.11769051]
[1770698523080,3.97657569,86.23,86.172,7.11769051]
[1770698524278,3.97657569,86.24,86.175,7.10678935]
[1770698524479,3.97657569,86.24,86.181,7.10678935]
[1770698524881,3.97657569,86.25,86.191,7.10678935]
[1770698525585,3.97657569,86.25,86.193,7.09493091]
[1770698525886,8.33890917,86.261,86.193,7.09493091]
[1770698526092,34.82,86.283,86.142,162.655]
[1770698526093,8.33890917,86.26,86.201,7.09493091]
[1770698526285,8.34058122,86.269,86.201,7.09493091]
[1770698526485,3.97657569,86.27,86.211,7.09493091]
[1770698526693,8.33886251,86.269,86.211,7.09493091]
[1770698526888,3.97657569,86.26,86.211,7.09493091]
[1770698530298,3.97657569,86.25,86.211,7.09493091]
[1770698530994,3.97657569,86.26,86.211,7.09493091]
[1770698532800,3.97657569,86.25,86.199,7.19043474]
[1770698535594,12.32024596,86.26,86.204,7.19333105]
[1770698535808,8.34367027,86.259,86.204,7.19333105]
[1770698536100,3.97657569,86.26,86.204,7.19333105]
[1770698536697,3.97657569,86.26,86.208,10.4484]
[1770698536895,3.97657569,86.26,86.209,7.19333105]
[1770698538501,8.3410518,86.259,86.211,7.18010277]
[1770698538697,3.97657569,86.26,86.211,7.18010277]
[1770698538903,8.3410518,86.259,86.211,7.18010277]
[1770698539102,3.97657569,86.26,86.211,7.18010277]
[1770698539502,3.97657569,86.26,86.214,7.19109571]
[1770698541508,3.97657569,86.25,86.214,7.19109571]
[1770698542495,10.4421,86.26,86.19,3.97657569]
[1770698542496,3.97657569,86.26,86.215,7.19462006]
[1770698543506,8.34148077,86.259,86.215,7.19462006]
[1770698543705,3.97657569,86.26,86.217,7.19626363]
[1770698543906,8.3414805,86.259,86.217,7.19626363]
[1770698544102,3.97657569,86.26,86.217,7.19626363]
[1770698544297,8.34227312,86.259,86.217,7.19626363]
[1770698544507,3.97657569,86.26,86.217,7.19626363]
[1770698544706,8.34240097,86.259,86.217,7.19626363]
[1770698545008,3.97657569,86.26,86.217,7.19626363]
[1770698545305,8.34232883,86.259,86.217,7.19626363]
[1770698545500,3.97657569,86.26,86.217,7.19626363]
[1770698545705,8.34340527,86.259,86.217,7.19626363]
[1770698545907,8.34340527,86.258,86.217,7.19626363]
[1770698546100,3.97657569,86.26,86.217,7.19626363]
[1770698546306,8.34391224,86.259,86.217,7.19626363]
[1770698546505,8.34391224,86.258,86.217,7.19626363]
[1770698546707,3.97657569,86.26,86.217,7.19626363]
[1770698547010,8.34410444,86.259,86.217,7.19626363]
[1770698547209,8.34410444,86.258,86.217,7.19626363]
[1770698547510,3.97657569,86.26,86.217,7.19626363]
[1770698547709,8.3439438,86.259,86.217,7.19626363]
[1770698548009,8.3439438,86.258,86.217,7.19626363]
[1770698548311,3.97657569,86.26,86.217,7.19626363]
[1770698548502,8.34371037,86.259,86.217,7.19626363]
[1770698548703,8.34371037,86.258,86.217,7.19626363]
[1770698548898,3.97657569,86.26,86.217,7.19626363]
[1770698549104,8.34378251,86.259,86.217,7.19626363]
[1770698549306,3.97657569,86.26,86.217,7.19626363]
[1770698561918,3.97657569,86.25,86.217,7.19626363]
[1770698562814,10.4408,86.271,86.217,7.19626363]
[1770698562815,3.97657569,86.26,86.217,7.19626363]
[1770698563315,8.36553293,86.259,86.217,7.19626363]
[1770698563514,8.36553293,86.258,86.217,7.19626363]
[1770698563813,3.97657569,86.26,86.217,7.19626363]
[1770698564720,8.36792936,86.259,86.217,7.19626363]
[1770698565018,8.36792936,86.258,86.217,7.19626363]
[1770698565217,3.97657569,86.26,86.217,7.19626363]
[1770698565218,8.36792936,86.257,86.217,7.19626363]
[1770698565419,3.97657569,86.26,86.217,7.19626363]
[1770698565622,8.36815473,86.259,86.217,7.19626363]
[1770698565819,8.36815473,86.258,86.217,7.19626363]
[1770698566015,8.36815473,86.257,86.217,7.19626363]
[1770698566214,3.97657569,86.26,86.217,7.19626363]
[1770698566410,8.36815524,86.259,86.217,7.19626363]
[1770698566610,8.36815524,86.258,86.217,7.19626363]
[1770698566814,8.36815524,86.257,86.217,7.19626363]
[1770698567013,8.36815524,86.256,86.217,7.19626363]
[1770698567211,8.36815524,86.255,86.217,7.19626363]
[1770698567414,8.37722379,86.254,86.217,7.19626363]
[1770698567615,8.37722379,86.253,86.217,7.19626363]
[1770698567811,8.37722379,86.252,86.217,7.19626363]
[1770698568110,3.97657569,86.26,86.217,7.19626363]
[1770698568314,8.37722558,86.259,86.217,7.19626363]
[1770698568611,8.37722558,86.258,86.217,7.19626363]
[1770698568812,8.37722558,86.257,86.217,7.19626363]
[1770698569020,8.37722558,86.256,86.217,7.19626363]
[1770698569218,8.37722558,86.255,86.217,7.19626363]
[1770698569524,8.37722558,86.254,86.217,7.19626363]
[1770698569712,8.37722558,86.253,86.217,7.19626363]
[1770698569910,8.37722558,86.252,86.217,7.19626363]
[1770698570220,8.37722558,86.251,86.217,7.19626363]
[1770698570422,8.37722558,86.25,86.217,7.19626363]
[1770698570623,8.37722558,86.249,86.217,7.19626363]
[1770698570822,3.97372597,86.26,86.217,7.19626363]
[1770698571023,8.38706514,86.259,86.217,7.19626363]
[1770698571224,8.38706514,86.258,86.217,7.19626363]
[1770698571426,8.38706514,86.257,86.217,7.19626363]
[1770698571621,8.38706514,86.256,86.217,7.19626363]
[1770698571923,8.38706514,86.255,86.217,7.19626363]
[1770698572125,8.38706514,86.254,86.217,7.19626363]
[1770698572324,8.38706514,86.253,86.217,7.19626363]
[1770698572625,8.38706514,86.252,86.217,7.19626363]
[1770698572826,8.38706514,86.251,86.217,7.19626363]
[1770698573027,8.38706514,86.25,86.217,7.19626363]
[1770698573219,8.38706514,86.249,86.217,7.19626363]
[1770698573415,8.38706514,86.248,86.217,7.19626363]
[1770698573626,3.97352961,86.26,86.217,7.19626363]
[1770698573826,8.38754863,86.259,86.217,7.19626363]
[1770698574029,8.38754863,86.258,86.217,7.19626363]
[1770698574228,8.38754863,86.257,86.217,7.19626363]
[1770698574430,8.38754863,86.256,86.217,7.19626363]
[1770698574633,8.38754863,86.255,86.217,7.19626363]
[1770698574832,8.38754863,86.254,86.217,7.19626363]
[1770698575129,8.38754863,86.253,86.217,7.19626363]
[1770698575333,3.97352961,86.26,86.217,7.19626363]
[1770698575334,8.38754863,86.252,86.217,7.19626363]
[1770698575535,8.38754863,86.251,86.217,7.19626363]
[1770698575735,8.38754863,86.25,86.217,7.19626363]
[1770698575926,8.38754863,86.249,86.217,7.19626363]
[1770698576126,8.38754863,86.248,86.217,7.19626363]
[1770698576330,3.97352961,86.26,86.217,7.19626363]
[1770698576636,8.38803472,86.259,86.217,7.19626363]
[1770698576832,3.97352961,86.26,86.217,7.19626363]
[1770698576833,8.38803472,86.258,86.217,7.19626363]
[1770698577032,8.38803472,86.257,86.217,7.19626363]
[1770698577234,8.38803472,86.256,86.217,7.19626363]
[1770698577531,8.38803472,86.255,86.217,7.19626363]
[1770698577729,8.38803472,86.254,86.217,7.19626363]
[1770698577930,8.38803472,86.253,86.217,7.19626363]
[1770698578233,8.38803472,86.252,86.217,7.19626363]
[1770698578432,8.38803472,86.251,86.217,7.19626363]
[1770698578734,8.38803472,86.25,86.217,7.19626363]